bitfinex-derivatives/quotes_ETHF0:USTF0_20250917
["timestamp","ask_amount","ask_price","bid_price","bid_amount"]
[1758150498061,0.229,4611.6,4611.1,0.6043]
[1758150498359,38.9392,4612.0,4611.1,0.6043]
[1758150498558,0.90673399,4611.9,4611.1,0.6043]
[1758150498756,0.90673399,4611.8,4611.1,0.6043]
[1758150498955,0.67773399,4611.7,4611.1,0.6043]
[1758150499266,38.3428,4612.0,4611.6,0.6043]
[1758150499562,0.90709528,4611.9,4611.6,0.6043]
[1758150499861,0.229,4611.8,4611.6,0.6043]
[1758150500551,35.135,4612.0,4611.6,0.6043]
[1758150500754,3.2078,4612.5,4611.6,0.6043]
[1758150500956,0.907584,4612.4,4612.1,3.2078]
[1758150501155,0.70319304,4612.3,4612.2,0.6043]
[1758150501356,35.139,4613.5,4612.6,0.6043]
[1758150501557,0.90801271,4613.4,4613.0,0.2367]
[1758150501861,0.67901271,4613.3,4613.1,0.6043]
[1758150502155,0.229,4613.3,4613.1,0.39002]
[1758150502549,0.229,4613.4,4613.3,0.39]
[1758150502752,0.90824795,4613.4,4613.3,0.6043]
[1758150502954,0.67924795,4613.4,4613.3,3.8121]
[1758150503153,0.5964,4614.9,4613.6,0.38997]
[1758150503355,0.43366333,4614.8,4614.1,0.6043]
[1758150503562,0.20466333,4614.7,4614.1,0.6043]
[1758150503861,0.5964,4614.9,4614.0,4.0488]
[1758150503862,0.43366333,4614.6,4614.0,4.0488]
[1758150504061,3.8042,4614.4,4613.4,0.6043]
[1758150504259,0.43366333,4614.3,4613.3,3.2078]
[1758150504464,0.20466333,4614.2,4613.3,3.2078]
[1758150504659,0.8476,4614.0,4613.3,3.2078]
[1758150504964,3.2078,4613.8,4612.8,3.8121]
[1758150505165,0.20466333,4613.7,4612.9,0.6043]
[1758150505362,0.20466333,4613.7,4613.0,0.2367]
[1758150505559,0.20466333,4613.7,4613.1,0.6043]
[1758150507564,0.5964,4613.6,4612.5,0.841]
[1758150507770,3.2078,4613.3,4612.5,0.841]
[1758150507959,0.80106333,4613.2,4612.5,0.841]
[1758150508156,0.43366333,4613.1,4612.5,0.6043]
[1758150508365,0.5964,4612.9,4612.5,0.6043]
[1758150508668,0.20466333,4613.0,4612.4,0.6043]
[1758150508669,0.5964,4612.7,4612.4,0.6043]
[1758150508858,0.43366333,4612.6,4612.3,3.2078]
[1758150509058,0.229,4612.6,4612.4,0.6043]
[1758150509256,0.229,4612.6,4612.3,3.2078]
[1758150509758,0.229,4612.6,4612.0,0.2367]
[1758150509965,0.20469588,4612.5,4612.0,0.2367]
[1758150510165,0.229,4612.6,4612.0,0.2367]
[1758150510469,0.20471199,4612.5,4612.1,0.6043]
[1758150510668,0.20471199,4612.4,4612.0,0.2367]
[1758150510962,0.8254,4612.6,4612.0,0.2367]
[1758150511266,0.20471428,4612.5,4612.0,0.2367]
[1758150511564,0.20471428,4612.4,4612.0,0.2367]
[1758150511763,0.20471428,4612.3,4612.1,0.6043]
[1758150511959,0.229,4612.6,4612.1,0.6043]
[1758150512161,0.20484665,4612.5,4612.1,0.6043]
[1758150512464,0.20484665,4612.4,4612.1,0.6043]
[1758150512862,0.20484665,4612.4,4612.0,0.2367]
[1758150513565,0.20484665,4612.3,4612.1,0.6043]
[1758150513765,0.229,4612.6,4612.1,0.6043]
[1758150513964,0.20486381,4612.5,4612.1,0.6043]
[1758150514167,0.20486381,4612.4,4612.0,0.2367]
[1758150514362,0.229,4612.3,4612.1,0.9944]
[1758150514565,0.229,4612.4,4612.3,0.6043]
[1758150515467,0.4338661,4612.4,4612.3,0.6043]
[1758150516170,0.229,4612.4,4612.3,0.6043]
[1758150516670,0.43390334,4612.4,4612.3,0.6043]
[1758150517065,0.229,4612.4,4612.3,0.6043]
[1758150519461,1.04692148,4612.4,4612.3,0.6043]
[1758150519664,1.51969493,4612.4,4612.3,0.6043]
[1758150520068,0.70177345,4612.4,4612.3,0.6043]
[1758150520271,0.90457467,4612.4,4612.3,0.6043]
[1758150520768,3.2078,4613.3,4612.4,0.39008]
[1758150520972,0.90468677,4613.2,4612.6,0.6038]
[1758150521169,0.67568677,4613.1,4612.6,0.6038]
[1758150521468,0.8442,4613.2,4612.6,0.6038]
[1758150521469,0.67570955,4613.0,4612.6,0.6038]
[1758150521674,0.90470048,4612.9,4612.8,0.6038]
[1758150521867,35.131,4613.5,4613.0,0.62502]
[1758150522069,0.90472854,4613.4,4613.1,0.6038]
[1758150522370,0.67572854,4613.3,4613.1,0.6038]
[1758150522574,0.90472854,4613.2,4613.1,0.6038]
[1758150523173,0.67596021,4613.2,4613.1,0.6038]
[1758150523965,0.229,4613.3,4613.1,0.6038]
[1758150524171,0.229,4613.3,4613.2,0.6038]
[1758150524566,0.70215114,4613.3,4613.2,0.6038]
[1758150524772,0.90503835,4613.3,4613.2,0.6038]
[1758150525172,1.52023835,4613.3,4613.2,0.6038]
[1758150525374,0.2512,4613.0,4612.2,3.8116]
[1758150525570,0.6152,4612.8,4612.2,3.8116]
[1758150525882,0.70215114,4612.7,4612.3,0.6038]
[1758150526071,0.6152,4612.5,4612.3,0.6038]
[1758150526276,0.6152,4612.6,4612.3,0.6038]
[1758150526479,0.47344893,4612.5,4612.1,0.6038]
[1758150526678,0.6152,4612.3,4612.1,0.6038]
[1758150527076,0.229,4612.2,4612.1,0.6038]
[1758150527378,0.229,4612.2,4611.7,3.4028]
[1758150527379,0.6152,4612.1,4611.8,0.6038]
[1758150527678,0.229,4612.2,4611.8,0.6038]
[1758150528572,0.229,4612.2,4612.0,0.235]
[1758150528779,0.6152,4613.2,4612.1,0.6038]
[1758150528973,0.7027553,4613.1,4612.6,0.6038]
[1758150529275,0.67693003,4613.0,4612.6,0.6038]
[1758150529574,0.90593003,4612.9,4612.6,0.6038]
[1758150529873,0.67693003,4612.8,4612.6,0.6038]
[1758150530180,0.67693003,4612.7,4612.6,0.6038]
[1758150530371,0.229,4612.7,4612.6,0.6038]
[1758150530677,0.47392484,4612.7,4612.6,0.6038]
[1758150530873,0.8442,4612.7,4612.1,0.6038]
[1758150531074,0.68256425,4612.6,4612.0,3.4428]
[1758150531272,0.47392484,4612.5,4612.1,0.6038]
[1758150531470,0.68259447,4612.4,4612.1,0.6038]
[1758150531672,0.6152,4612.2,4612.1,0.6038]
[1758150531870,1.52679865,4612.2,4612.0,3.2078]
[1758150532172,1.52679865,4612.2,4611.7,0.195]
[1758150532173,0.6152,4611.9,4611.7,0.195]
[1758150532372,1.29780186,4611.8,4611.7,0.0216]
[1758150532773,0.68260186,4611.8,4611.3,3.2078]
[1758150532976,0.91160186,4611.7,4610.9,0.6038]
[1758150533181,0.6152,4611.5,4610.9,0.6038]
[1758150533375,0.68260181,4611.4,4610.9,0.6038]
[1758150533570,0.6152,4611.2,4610.9,0.6038]
[1758150533775,0.91160181,4611.1,4610.7,0.6038]
[1758150533979,0.47392484,4611.0,4610.7,0.6038]
[1758150534179,0.47392484,4611.0,4610.6,3.2078]
[1758150534380,0.47392484,4611.0,4610.7,0.6038]
[1758150534579,0.229,4611.1,4610.6,3.2078]
[1758150534776,0.229,4611.1,4610.7,0.6038]
[1758150534976,0.229,4611.1,4610.6,3.2078]
[1758150535178,0.8664,4611.0,4610.6,3.2078]
[1758150535380,0.6825098,4610.9,4610.6,3.3813]
[1758150535576,0.6152,4610.7,4610.6,3.3813]
[1758150535874,1.2977098,4610.7,4610.6,3.3813]
[1758150536079,0.229,4610.7,4610.6,3.9851]
[1758150536479,0.8442,4610.7,4610.6,3.9851]
[1758150536877,0.229,4610.7,4610.6,3.9851]
[1758150537984,1.05266502,4610.7,4610.6,0.1735]
[1758150538281,0.8442,4610.7,4610.6,0.1735]
[1758150538485,3.2078,4611.3,4610.7,0.6038]
[1758150538674,0.5858,4610.8,4610.7,0.5995]
[1758150538872,0.229,4610.9,4610.6,0.1735]
[1758150539178,0.5858,4610.7,4610.6,0.1735]
[1758150539478,3.7936,4610.7,4610.6,0.1735]
[1758150539680,3.7936,4610.7,4610.4,0.0216]
[1758150539681,0.2395,4610.5,4610.4,0.0216]
[1758150539889,0.8253,4610.5,4610.4,0.0216]
[1758150540088,5.50678573,4610.5,4609.3,0.5995]
[1758150540382,0.5858,4609.9,4608.9,0.5995]
[1758150540577,0.5858,4609.7,4608.9,0.5995]
[1758150541575,0.5858,4609.7,4609.1,0.5995]
[1758150542080,0.229,4609.6,4609.5,0.247]
[1758150542288,0.229,4609.6,4609.5,0.5995]
[1758150542584,0.8148,4609.6,4609.5,0.5995]
[1758150542880,0.229,4609.6,4609.0,0.247]
[1758150543387,0.229,4609.6,4608.7,0.7686]
[1758150543388,1.04225001,4609.5,4608.7,0.7686]
[1758150543576,0.5858,4609.5,4608.7,0.1691]
[1758150543888,0.229,4609.4,4608.8,0.5995]
[1758150544277,0.5858,4609.3,4608.8,0.5995]
[1758150544479,0.229,4609.4,4608.7,0.1691]
[1758150544685,35.142,4610.0,4609.6,0.5995]
[1758150544880,3.2078,4610.1,4609.6,0.5995]
[1758150545184,0.229,4610.1,4610.0,0.247]
[1758150545386,0.229,4610.1,4610.0,0.8465]
[1758150545684,3.2078,4611.2,4610.6,0.6218]
[1758150545890,0.90821621,4611.1,4611.0,0.8602]
[1758150546076,0.90821621,4611.1,4610.5,0.2384]
[1758150546280,0.6064,4610.9,4610.6,0.6218]
[1758150546586,0.67921621,4610.8,4610.6,0.6218]
[1758150546787,0.229,4611.1,4610.6,0.6218]
[1758150546982,3.2078,4611.2,4610.5,0.2384]
[1758150546983,0.229,4611.0,4610.5,0.2384]
[1758150547187,0.6064,4610.9,4610.6,0.6218]
[1758150548083,0.6064,4610.9,4610.5,0.2384]
[1758150548283,0.6064,4610.9,4610.6,0.6218]
[1758150548593,0.6064,4610.9,4610.5,0.2384]
[1758150549284,0.229,4611.0,4610.5,0.2384]
[1758150549488,0.229,4611.0,4610.1,0.6218]
[1758150549489,0.6064,4610.9,4610.1,0.6218]
[1758150551390,0.229,4610.8,4610.1,0.6218]
[1758150552086,3.2078,4611.2,4610.1,0.6218]
[1758150552280,0.229,4610.7,4610.1,0.6218]
[1758150553186,3.2078,4611.2,4610.6,0.6218]
[1758150553390,35.145,4611.5,4611.1,0.6218]
[1758150553591,0.4405323,4611.4,4611.0,0.2384]
[1758150553793,0.2115323,4611.3,4611.0,0.2384]
[1758150553982,0.2115323,4611.3,4611.1,0.6218]
[1758150554492,0.229,4611.2,4611.1,0.6218]
[1758150554686,35.145,4611.5,4611.0,0.2384]
[1758150554888,0.4405707,4611.4,4611.1,0.6218]
[1758150555090,0.8179707,4611.3,4611.1,0.6218]
[1758150555287,0.229,4611.4,4611.0,0.2384]
[1758150555593,0.21159755,4611.3,4611.0,0.2384]
[1758150555788,0.8354,4611.4,4611.1,0.6218]
[1758150555988,0.21159762,4611.3,4611.0,0.6218]
[1758150556191,0.6064,4611.1,4611.0,0.6218]
[1758150556986,0.6064,4611.2,4610.5,3.2078]
[1758150557193,0.6064,4610.9,4610.5,3.2078]
[1758150557692,0.241,4611.0,4610.5,3.2078]
[1758150557892,0.21166729,4610.9,4610.5,3.2078]
[1758150558098,0.21166729,4610.8,4610.5,3.2078]
[1758150558392,0.6064,4610.6,4610.1,0.6218]
[1758150558692,0.8354,4610.7,4610.1,0.6218]
[1758150559394,0.2118038,4610.6,4610.0,0.247]
[1758150559695,0.6064,4610.6,4610.0,0.6218]
[1758150559888,0.241,4610.5,4610.0,0.6218]
[1758150560385,0.6064,4610.3,4609.9,3.2078]
[1758150560590,3.8142,4610.8,4610.0,0.2384]
[1758150560789,0.21194034,4610.7,4610.6,0.6218]
[1758150560987,35.145,4611.5,4610.6,0.6218]
[1758150561193,0.91228349,4611.4,4611.1,0.6218]
[1758150561392,0.21189621,4611.3,4611.1,0.6218]
[1758150561892,0.21189621,4611.3,4611.1,0.39018]
[1758150562094,35.145,4611.5,4611.2,0.6218]
[1758150562396,0.229,4611.4,4611.2,0.6218]
[1758150562595,0.229,4611.4,4611.3,3.8296]
[1758150563190,35.145,4611.5,4611.4,0.6218]
[1758150563592,35.374,4611.5,4611.4,0.6218]
[1758150564695,35.145,4611.5,4611.4,0.6218]
[1758150564896,35.374,4611.5,4611.4,0.6218]
[1758150566497,35.145,4611.5,4611.4,0.6218]
[1758150566697,35.374,4611.5,4611.4,0.6218]
[1758150567304,35.145,4611.5,4611.4,0.6218]
[1758150567507,35.373,4611.5,4611.4,0.6218]
[1758150567901,3.8142,4612.4,4611.5,0.2384]
[1758150568108,0.91093077,4612.3,4611.6,0.6218]
[1758150568309,1.08623077,4612.2,4612.1,0.4177]
[1758150568511,2.09233077,4612.2,4612.1,1.0395]
[1758150568907,2.32033077,4612.2,4612.1,1.0395]
[1758150569214,2.09233077,4612.2,4612.1,1.0395]
[1758150569417,2.32033077,4612.2,4611.6,0.6218]
[1758150569603,0.68293077,4612.1,4611.5,0.2384]
[1758150569809,1.84930533,4612.0,4611.9,1.0395]
[1758150570212,1.6374,4612.0,4611.9,1.0395]
[1758150570609,3.8142,4612.9,4612.3,0.811]
[1758150570810,0.68260287,4612.8,4612.7,1.4328]
[1758150571013,0.2118013,4612.8,4612.7,1.4328]
[1758150571212,0.6313,4613.1,4613.0,1.6712]
[1758150571416,1.6374,4613.1,4613.0,0.4177]
[1758150571614,0.228,4613.1,4613.0,1.6712]
[1758150571813,0.69845819,4613.1,4613.0,1.6712]
[1758150572019,0.69845819,4613.1,4613.0,1.0494]
[1758150572020,0.228,4613.1,4613.0,1.0494]
[1758150572417,1.10162198,4613.1,4613.0,1.0494]
[1758150572613,0.6313,4613.1,4613.0,1.6712]
[1758150572813,0.228,4613.1,4613.0,1.6712]
[1758150573112,3.2078,4613.5,4613.1,0.6218]
[1758150573319,4.6172,4613.5,4613.4,1.0395]
[1758150573520,4.2388,4613.5,4613.1,0.6218]
[1758150573818,0.4033,4613.2,4613.1,1.4328]
[1758150574021,0.6313,4613.2,4613.1,1.4328]
[1758150575311,35.142,4613.9,4613.2,0.6218]
[1758150575515,0.4076,4613.1,4613.0,1.0093]
[1758150575716,0.6356,4613.1,4613.0,1.6408]
[1758150576521,3.2078,4613.5,4613.0,1.6408]
[1758150576823,0.6356,4613.4,4613.3,1.3904]
[1758150577721,1.3759,4613.4,4613.3,1.3904]
[1758150577922,0.5677,4613.3,4612.9,3.2078]
[1758150578223,1.3759,4612.6,4612.5,0.1734]
[1758150578422,1.6039,4612.6,4612.5,0.1734]
[1758150579124,2.07341925,4612.6,4612.5,0.1734]
[1758150580522,1.84541925,4612.6,4612.5,0.1734]
[1758150580723,2.07341925,4612.6,4612.5,0.1734]
[1758150581025,2.07341925,4612.6,4611.9,0.6178]
[1758150581230,0.4076,4612.0,4611.9,1.3904]
[1758150581520,0.228,4612.0,4611.9,1.3904]
[1758150581916,0.6356,4612.0,4611.9,1.3904]
[1758150583218,1.6039,4612.0,4611.9,1.3904]
[1758150583629,1.3759,4612.0,4611.9,1.3904]
[1758150583929,0.228,4612.0,4611.9,1.3904]
[1758150585226,3.2078,4612.5,4611.9,0.7726]
[1758150585426,1.0362,4612.4,4612.3,0.3875]
[1758150585628,0.4076,4612.4,4612.3,1.3904]
[1758150585826,0.6356,4612.4,4612.3,1.3904]
[1758150586028,1.6039,4612.4,4612.3,1.3904]
[1758150586326,1.8459411,4612.4,4612.3,1.3904]
[1758150586519,2.0739411,4612.4,4612.3,1.3904]
[1758150587124,3.4417,4613.0,4612.3,0.7726]
[1758150587125,3.2078,4613.0,4612.3,0.7726]
[1758150587325,0.67605923,4612.9,4612.8,1.3904]
[1758150587532,1.31165923,4612.9,4612.8,1.3904]
[1758150588226,2.27995923,4612.9,4612.8,1.0053]
[1758150588626,2.27995923,4612.9,4612.8,0.3875]
[1758150588925,0.5677,4612.8,4612.6,0.6178]
[1758150589133,2.05195923,4612.7,4612.6,1.0053]
[1758150589330,1.84605039,4612.7,4612.6,0.3875]
[1758150589631,1.3759,4612.4,4612.3,1.0269]
[1758150589836,1.3759,4612.4,4612.3,0.4091]
[1758150590225,1.3759,4612.4,4612.3,0.0216]
[1758150590424,1.3759,4612.4,4612.3,1.0269]
[1758150590829,1.3759,4612.4,4612.3,1.412]
[1758150591231,1.0362,4612.4,4612.3,1.412]
[1758150591733,1.6039,4612.4,4612.3,1.412]
[1758150592132,1.0362,4612.4,4612.3,1.3904]
[1758150592325,0.8082,4612.4,4612.3,1.3904]
[1758150592529,1.6039,4612.4,4612.3,1.3904]
[1758150593233,1.50716532,4612.4,4612.3,1.3904]
[1758150593538,1.0362,4612.4,4612.3,1.3904]
[1758150594032,1.6039,4612.4,4612.0,0.2464]
[1758150594238,1.3759,4612.1,4612.0,1.0053]
[1758150594529,1.48806091,4612.1,4611.6,3.2078]
[1758150594736,1.3759,4611.8,4611.7,1.0053]
[1758150595531,1.84703625,4611.8,4611.7,1.0053]
[1758150596428,0.5677,4611.7,4611.4,0.7912]
[1758150596632,0.4619,4612.0,4611.4,0.1734]
[1758150596633,1.3759,4611.5,4611.4,0.1734]
[1758150596838,2.05588102,4611.5,4611.4,0.1734]
[1758150597232,2.05588102,4611.5,4611.4,1.5638]
[1758150597233,1.27933625,4611.5,4611.4,1.5638]
[1758150597438,1.10673625,4611.5,4611.4,1.5638]
[1758150597837,0.47113625,4611.5,4611.4,1.5638]
[1758150598038,0.47113625,4611.5,4611.4,0.946]
[1758150598039,0.228,4611.5,4611.4,0.946]
[1758150598238,0.69913625,4611.5,4611.4,0.946]
[1758150598637,0.69913625,4611.5,4611.4,1.5343]
[1758150598838,0.47113625,4611.5,4611.4,1.5343]
[1758150599037,0.6254,4611.5,4611.4,1.5343]
[1758150599235,1.09656162,4611.5,4611.4,1.5343]
[1758150599436,2.29469774,4611.5,4611.4,1.1492]
[1758150600537,2.29469774,4611.5,4611.4,0.5609]
[1758150600739,2.29469774,4611.5,4611.4,1.1492]
[1758150600939,1.47886162,4611.5,4611.4,1.5492]
[1758150601136,2.08586162,4611.5,4611.4,1.5492]
[1758150601439,2.52428118,4611.5,4611.4,0.1734]
[1758150601638,5.73208118,4611.5,4611.4,0.1734]
[1758150601843,9.73208118,4611.5,4610.5,0.5883]
[1758150602042,1.3867,4610.6,4610.5,0.9751]
[1758150602242,2.08586162,4610.6,4610.5,0.9751]
[1758150602646,1.09656162,4610.6,4610.5,1.599]
[1758150602842,3.9875,4611.5,4611.4,0.3868]
[1758150603043,4.89532897,4611.5,4611.4,1.3751]
[1758150603349,5.50232897,4611.5,4611.4,1.3751]
[1758150603746,5.50232897,4611.5,4611.0,0.8122]
[1758150603943,0.98845824,4611.4,4611.3,1.3751]
[1758150604253,1.45949937,4611.4,4611.3,1.3751]
[1758150604443,0.67979937,4611.4,4611.3,1.3751]
[1758150605256,2.06649937,4611.4,4611.3,1.3751]
[1758150605744,0.744,4611.0,4610.9,3.2078]
[1758150605949,2.47509937,4611.0,4610.9,3.2078]
[1758150606151,1.65179937,4611.0,4610.9,4.5662]
[1758150606545,1.42379937,4611.0,4610.9,4.5662]
[1758150606848,1.07214113,4611.0,4610.9,4.5662]
[1758150607247,0.69904113,4611.0,4610.9,4.5662]
[1758150609454,0.228,4611.0,4610.9,4.5662]
[1758150609656,0.69881042,4611.0,4610.9,4.5662]
[1758150609857,0.69881042,4611.0,4610.9,3.9768]
[1758150610357,0.228,4611.0,4610.9,4.5662]
[1758150610552,3.2078,4611.7,4610.9,4.5662]
[1758150610758,1.27877991,4611.6,4611.5,1.3584]
[1758150612155,1.27877991,4611.6,4611.5,1.5998]
[1758150612866,1.05077991,4611.6,4611.5,1.5998]
[1758150613160,1.27877991,4611.6,4611.5,1.5998]
[1758150613354,1.64967991,4611.6,4611.5,1.5998]
[1758150613554,1.42165257,4611.6,4611.5,1.5998]
[1758150613759,1.64965257,4611.6,4611.5,1.5998]
[1758150614658,1.27875257,4611.6,4611.5,1.5998]
[1758150614861,0.67765257,4611.6,4611.5,1.5998]
[1758150615061,0.90565257,4611.6,4611.5,1.5998]
[1758150615558,1.27875257,4611.6,4611.5,1.5998]
[1758150615759,1.07186573,4611.6,4611.5,1.5998]
[1758150615959,1.44276573,4611.6,4611.5,1.5998]
[1758150616160,1.64964437,4611.6,4611.5,1.5998]
[1758150616359,2.25184437,4611.6,4611.0,0.2414]
[1758150616560,0.3731,4611.1,4611.0,1.5998]
[1758150616760,0.6011,4611.1,4611.0,1.5998]
[1758150617162,0.972,4611.1,4611.0,1.5998]
[1758150617465,1.5742,4611.1,4611.0,1.5998]
[1758150617861,1.5742,4611.1,4611.0,1.3584]
[1758150618265,0.972,4611.1,4611.0,1.5998]
[1758150619059,1.5742,4611.1,4611.0,1.5998]
[1758150619256,2.04512919,4611.1,4611.0,1.3584]
[1758150619455,2.04512919,4611.1,4611.0,0.973]
[1758150619662,2.25963435,4611.1,4611.0,0.3836]
[1758150620168,1.65743435,4611.1,4610.8,3.2078]
[1758150620367,1.3462,4610.9,4610.8,3.2078]
[1758150620567,2.03163435,4610.9,4610.8,3.2078]
[1758150621567,2.03163435,4610.9,4610.8,4.1808]
[1758150622365,2.25963435,4610.9,4610.8,4.1808]
[1758150622565,2.25963435,4610.9,4610.8,3.5914]
[1758150622773,2.25963435,4610.9,4610.8,3.2078]
[1758150624365,2.25963435,4610.9,4610.5,0.1735]
[1758150624570,1.3462,4610.6,4610.5,0.1735]
[1758150624869,1.3462,4609.8,4609.7,0.3836]
[1758150625060,2.26071189,4609.8,4609.7,0.3836]
[1758150625262,2.04587999,4609.8,4609.7,0.3836]
[1758150625472,2.26060064,4609.8,4609.7,0.3836]
[1758150625667,0.744,4609.5,4609.3,3.2078]
[1758150625866,2.26060064,4609.4,4609.3,3.2078]
[1758150626073,2.26060064,4609.4,4609.3,4.1808]
[1758150626262,2.26060064,4609.4,4609.3,3.2078]
[1758150626967,2.26060064,4609.4,4609.3,4.1808]
[1758150627362,2.26060064,4609.4,4609.3,4.5662]
[1758150627769,2.26060064,4609.4,4609.3,1.3584]
[1758150628166,0.69967999,4609.4,4609.3,1.3584]
[1758150629174,3.2078,4610.1,4609.3,1.3584]
[1758150629175,3.2078,4610.1,4610.0,1.0104]
[1758150629382,4.49506141,4610.1,4610.0,1.5998]
[1758150629568,3.89396141,4610.1,4610.0,1.5998]
[1758150629874,35.143,4610.4,4610.1,0.5894]
[1758150630065,35.143,4610.4,4610.0,1.0104]
[1758150630066,0.91405508,4610.3,4610.2,1.3584]
[1758150630667,1.28715508,4610.3,4610.2,1.3584]
[1758150630864,1.65805508,4610.3,4609.9,3.2078]
[1758150631069,1.65805508,4610.3,4609.9,0.769]
[1758150631070,0.3731,4610.0,4609.9,0.769]
[1758150631277,0.6011,4610.0,4609.9,0.769]
[1758150631483,0.3731,4610.0,4609.9,1.3584]
[1758150631684,1.07283187,4610.0,4609.9,1.3584]
[1758150631883,0.6011,4610.0,4609.9,1.3584]
[1758150632385,0.9753,4609.9,4609.5,0.263]
[1758150632585,1.3462,4609.9,4609.8,1.3584]
[1758150632780,2.03228866,4609.9,4609.8,1.3584]
[1758150633285,2.03226216,4609.9,4609.8,1.3584]
[1758150633482,0.47172756,4609.9,4609.8,1.3584]
[1758150633679,35.143,4610.4,4610.3,1.3584]
[1758150633881,35.82895141,4610.4,4610.3,1.3584]
[1758150634080,36.05695141,4610.4,4610.3,1.3584]
[1758150634281,36.05692962,4610.4,4610.3,1.3584]
[1758150634481,35.61463341,4610.4,4610.3,1.3584]
[1758150634680,35.371,4610.4,4610.3,1.3584]
[1758150635084,0.6022,4611.4,4611.3,0.3836]
[1758150635085,0.9753,4611.4,4611.3,0.3836]
[1758150635388,1.28696294,4611.4,4611.3,1.3584]
[1758150635588,1.05896294,4611.4,4611.3,1.3584]
[1758150635788,2.20626294,4611.4,4611.3,1.3584]
[1758150636291,1.97826294,4611.4,4611.3,1.3584]
[1758150636490,2.20626294,4611.4,4611.3,1.3584]
[1758150636689,1.97826294,4611.4,4611.3,1.3584]
[1758150636990,2.20626294,4611.4,4611.3,1.3584]
[1758150637484,0.68586294,4611.4,4611.3,1.3584]
[1758150637685,0.91386294,4611.4,4611.3,1.3584]
[1758150638387,2.22526294,4611.4,4611.3,1.3584]
[1758150638988,2.22526294,4611.4,4611.3,0.3836]
[1758150639589,2.22526294,4611.4,4611.0,0.8311]
[1758150639788,1.3114,4611.1,4611.0,1.1945]
[1758150639979,2.22526294,4611.1,4611.0,0.9531]
[1758150640390,1.67686294,4611.1,4611.0,1.5467]
[1758150640988,1.67912371,4611.1,4611.0,1.5467]
[1758150641791,2.22752371,4611.1,4611.0,0.5897]
[1758150642185,1.67912371,4611.1,4610.8,0.5897]
[1758150642389,0.9256,4611.0,4610.9,1.3248]
[1758150642988,0.3772,4611.0,4610.9,1.3248]
[1758150644289,0.6052,4611.0,4610.9,1.3248]
[1758150645290,1.07685627,4611.0,4610.9,1.3248]
[1758150645592,0.228,4611.0,4610.9,1.3248]
[1758150645788,3.2078,4611.7,4611.6,1.3248]
[1758150645982,0.91620569,4611.7,4611.6,1.3248]
[1758150646690,0.228,4611.7,4611.6,1.3248]
[1758150647689,0.5484,4612.2,4611.7,0.5897]
[1758150647889,0.91605539,4612.1,4612.0,0.957]
[1758150648091,0.91605539,4612.1,4612.0,1.5467]
[1758150648787,0.47150529,4612.1,4612.0,1.5467]
[1758150648986,0.91599054,4612.1,4612.0,1.5467]
[1758150649183,0.47150529,4612.1,4612.0,1.5467]
[1758150649390,0.69950529,4612.1,4612.0,1.5467]
[1758150649593,0.228,4612.1,4612.0,1.5467]
[1758150649794,35.148,4612.3,4612.2,0.7351]
[1758150649984,36.06363086,4612.3,4612.2,1.3248]
[1758150650184,3.2078,4612.8,4612.2,0.7351]
[1758150650387,0.3772,4612.4,4612.1,0.5897]
[1758150650584,0.228,4612.3,4612.2,1.3248]
[1758150651194,0.9256,4613.0,4612.9,0.7351]
[1758150651395,1.29229986,4613.0,4612.9,1.3248]
[1758150652091,1.07603411,4613.0,4612.9,1.3248]
[1758150652291,0.991,4613.0,4612.9,1.3248]
[1758150652889,0.6052,4613.0,4612.9,1.3248]
[1758150655489,0.991,4613.0,4612.9,1.3248]
[1758150656900,0.6052,4613.0,4612.9,1.3248]
[1758150657198,3.2078,4613.3,4612.9,1.3248]
[1758150657494,3.9708,4613.3,4613.2,1.3248]
[1758150657796,4.7472,4613.3,4613.2,1.3248]
[1758150657996,4.1988,4613.3,4613.2,1.3248]
[1758150658395,4.7365,4613.3,4613.2,1.3248]
[1758150658694,4.1988,4613.3,4613.2,1.3248]
[1758150658999,5.20670045,4613.3,4613.2,1.3248]
[1758150659298,5.4226979,4613.3,4613.2,1.3248]
[1758150660198,4.1978,4613.3,4613.2,1.3248]
[1758150660699,4.7355,4613.3,4613.2,1.3248]
[1758150661593,4.5085,4613.3,4613.2,0.9838]
[1758150661792,4.7355,4613.3,4613.2,1.3484]
[1758150661992,4.1978,4613.3,4613.2,1.3484]
[1758150662199,3.9708,4613.3,4613.2,1.3484]
[1758150662396,3.4514,4614.0,4613.5,0.2261]
[1758150662594,0.3834,4613.6,4613.5,1.5794]
[1758150662799,0.227,4613.6,4613.5,1.5794]
[1758150663196,3.2078,4614.0,4613.5,0.9848]
[1758150663398,3.2078,4614.0,4613.6,1.3533]
[1758150663399,0.227,4613.7,4613.6,1.3533]
[1758150663898,1.97717131,4613.7,4613.6,1.3533]
[1758150664202,2.19333036,4613.7,4613.6,1.3533]
[1758150665204,1.97721164,4613.7,4613.6,1.3533]
[1758150665600,1.43951164,4613.7,4613.6,1.3533]
[1758150665795,3.2078,4614.0,4613.6,1.3533]
[1758150666002,0.227,4613.9,4613.8,0.7338]
[1758150666207,0.227,4613.9,4613.8,1.2787]
[1758150667005,3.2078,4614.5,4613.9,0.5449]
[1758150667196,0.86021403,4614.4,4614.3,1.2787]
[1758150667398,1.99071403,4614.4,4614.3,1.2787]
[1758150668311,1.45291403,4614.4,4614.3,1.2787]
[1758150668603,1.08721403,4614.4,4614.3,1.2787]
[1758150668905,0.86021403,4614.4,4614.3,1.2787]
[1758150669202,1.08721403,4614.4,4614.3,1.2787]
[1758150669601,1.22591403,4614.4,4614.3,1.2787]